Workbook

Sheet Sheet1
A1: 2025年生产部11月接收处置记录统计表 | R1: 自产废物
A2: 废物名称 | B2: 危废代码 | C2: 形态 | D2: 上月结存 | E2: 本月接收量 | F2: 处置量及工艺 | J2: 库存量 | K2: 1#库 | L2: 2#库 | M2: 干化 | N2: 罐区 | O2: 料坑 | R2: 废物名称 | S2: 上月结存 | T2: 本月产生量 | U2: 包数 | V2: 本月处理 | Y2: 库存 | Z2: 备注 | AA2: 存储位置
F3: 固废焚烧 | G3: 废液焚烧 | H3: 清洗大桶 | I3: 污泥干化 | K3: 1#库 | L3: 2#库 | M3: 干化 | N3: 罐区 | O3: 料坑 | V3: 焚烧处置 | W3: 液体炉 | X3: 拉运
A4: 蒸馏残液 | B4: 271-001-02 | C4: 液态 | D4: 31.3345 | J4: =D4+E4-F4-G4-H4-I4 -> 31.3345 | K4: 31.3345 | P4: =K4+L4+M4+N4+O4 -> 31.3345 | R4: 炉渣（回转窑） | S4: 165.77 | T4: =105.96-13.29 -> 92.67 | U4: =85-11 -> 74 | Y4: =S4+T4-V4-X4-W4 -> 258.44
A5: 精馏残渣 | B5: 271-001-02 | C5: 固态 | D5: 0 | J5: 0 | P5: 0 | R5: 飞灰（回转窑） | S5: 10.383 | T5: 15.55 | U5: 35 | Y5: 25.933
A6: 反应残渣3 | B6: 271-001-02 | C6: 半固态 | D6: 0 | J6: 0 | P6: 0 | R6: 飞灰（废液炉） | S6: 0.965 | T6: 3.08 | U6: 8 | Y6: 4.045
A7: 废有机溶剂 | B7: 271-002-02 | C7: 液态 | D7: 0 | E7: =9.33824 -> 9.33824 | J7: 9.33824 | K7: 9.33824 | P7: 9.33824 | R7: 废油渣/泥 | S7: 0 | Y7: 0 | Z7: 精馏切水后剩下的罐底泥
A8: 过滤介质 | B8: 271-003-02 | C8: 固态 | D8: 0 | J8: 0 | P8: 0 | R8: 含油污水 | S8: 0 | Y8: 0 | Z8: 蒸汽清洗过程 | AA8: 2#库
A9: 药用废炭 | B9: 271-004-02 | C9: 固态 | D9: 0 | E9: =0.23736 -> 0.23736 | J9: 0.23736 | K9: 0.23736 | P9: 0.23736 | R9: 废商标 | S9: 0 | Y9: 0 | Z9: 除商标 | AA9: 2#库
A10: 实验室废液 | B10: 900-002-03 | C10: 液态 | D10: 0 | J10: 0 | P10: 0 | R10: 废残液 | S10: 0 | Y10: 0 | Z10: 抽残液 | AA10: 2#库
A11: 高危化学品 | B11: 900-002-03 | C11: 半固态 | D11: 0 | J11: 0 | P11: 0 | R11: 废渣 | S11: 0 | Y11: 0 | Z11: 清洗过程 | AA11: 2#库
A12: 一般废药品 | B12: 900-002-03 | C12: 固态 | D12: 0 | E12: =0.12 -> 0.12 | F12: =0.1+0.02 -> 0.12 | J12: 0 | P12: 0 | R12: 漆渣 | S12: 0 | Y12: 0 | Z12: 清洗过程
A13: 废药物、药品 杀虫剂、磷化铝等 | B13: 900-003-04 | C13: 固态 | D13: 0.14 | F13: =0.14 -> 0.14 | J13: 0 | P13: 0 | R13: 污水厂污泥 | S13: 0 | Y13: 0 | Z13: 水处理后产生的污泥 | AA13: 2#库
B14: 900-003-04 | C14: 半固态 | D14: 0 | J14: 0 | P14: 0 | R14: 废清洗剂 | S14: 0 | Y14: 0 | Z14: 清洗剂清洗过程
A15: 废盐 | B15: 263-008-04 | C15: 固态 | D15: 0 | J15: 0 | P15: 0
A16: 蒸馏残液 | B16: 263-008-04 | C16: 半固态 | D16: 0 | J16: 0 | P16: 0
A17: 废渣 | B17: 263-009-04 | C17: 固态 | D17: 0 | J17: 0 | P17: 0
A18: 污泥 | B18: 263-011-04 | C18: 半固态 | D18: 0 | E18: =16.28 -> 16.28 | J18: 16.28 | K18: 16.28 | P18: 16.28
A19: 废弃木材 | B19: 201-003-05 | C19: 固态 | D19: 0 | J19: 0 | P19: 0
A20: 废有机溶剂 | B20: 900-401-06 | C20: 液态 | D20: 0 | J20: 0 | P20: 0
A21: 废有机溶剂及废物 | B21: 900-402-06 | C21: 液态 | D21: 131.9425 | E21: =1.925+0.033+27.52+0.007+2.345 -> 31.83 | F21: =0.25+0.007+0.005+0.01+0.017 -> 0.289 | G21: =0.087 -> 0.087 | J21: 163.3965 | L21: 163.3965 | P21: 163.3965
A22: 清洗剂、渗透剂包装物 | B22: 900-402-06 | C22: 固态 | D22: 0 | J22: 0 | P22: 0
A23: 废有机溶剂 | B23: 900-404-06 | C23: 液态 | D23: 177.5385 | E23: =1.99 -> 1.99 | G23: =4.65+8.5+34+22.95+26.7+4.322 -> 101.122 | J23: 78.4065 | L23: 78.4065 | P23: 78.4065
A24: 废稀释剂桶 | B24: 900-404-06 | C24: 固态 | D24: 0 | E24: =0.04 -> 0.04 | F24: =0.04 -> 0.04 | J24: 0 | P24: 0
A25: 废有机废液 | B25: 900-405-06 | C25: 液态 | D25: 4.5 | J25: 4.5 | L25: 4.5 | P25: 4.5
A26: 废活性炭 | B26: 900-405-06 | C26: 固态 | D26: 0.02375 | E26: =0.02+0.03835 -> 0.05835 | F26: =0.02375+0.02 -> 0.04375 | J26: 0.03835 | L26: 0.03835 | P26: 0.03835
A27: 丙烯酸甲酯聚合物 | B27: 900-407-06 | C27: 固态 | D27: 0 | J27: 0 | P27: 0
A28: 废有机溶剂 | B28: 900-407-06 | C28: 液态 | D28: 163.0205 | E28: =29.21+13.46 -> 42.67 | J28: 205.6905 | L28: 205.6905 | P28: 205.6905
A29: 危废污泥 | B29: 900-409-06 | C29: 固态 | D29: 113.18 | E29: =24.9+18.98+23.12+14.08+19.44 -> 100.52 | F29: =22.94+4.88+18.12+24.54+24.52+10+8.18+12+12.9 -> 138.08 | J29: 75.62 | L29: 75.62 | P29: 75.62
A30: 油污水 | B30: 251-001-08 | C30: 液态 | D30: 445.75 | F30: =8+3.56+9+11+4+16.95+18.12+18+8 -> 96.63 | G30: =16.88+5.6+11+10.62+5.6+14+11.85+12+9 -> 96.55 | J30: 252.57 | N30: =252.57-70 -> 182.57 | O30: 70 | P30: 252.57
A31: 清舱污泥（水） | B31: 251-001-08 | C31: 半固态 | D31: 0 | J31: 0 | P31: 0
A32: 清罐油渣 | B32: 251-002-08 | C32: 固态 | D32: 0 | J32: 0 | P32: 0
A33: 浮渣、污泥 | B33: 251-003-08 | C33: 固态 | D33: 0 | J33: 0 | P33: 0
A34: 废滤芯 | B34: 251-012-08 | C34: 固态 | D34: 0 | J34: 0 | P34: 0
A35: 废溶剂油 | B35: 291-001-08 | C35: 液态 | D35: 0 | J35: 0 | P35: 0
A36: 废溶剂油 | B36: 291-001-08 | C36: 半固态 | D36: 51.22 | E36: =22.04 -> 22.04 | J36: 73.26 | K36: 73.26 | P36: 73.26
A37: 油泥、油脚 | B37: 071-001-08 | C37: 液态 | D37: 0 | J37: 0 | P37: 0
A38: 含油泥浆 | B38: 071-002-08 | C38: 液态 | D38: 0 | J38: 0 | P38: 0
A39: 含油岩屑 | B39: 071-002-08 | C39: 半固态 | D39: 0 | J39: 0 | P39: 0
A40: 废油泥 | B40: 900-200-08 | C40: 半固态 | D40: 0 | J40: 0 | P40: 0
A41: 研磨泥 | B41: 900-200-08 | C41: 固态 | D41: 14.537 | E41: =0.46+17.625+17.4845 -> 35.5695 | F41: =14.537+0.46+2.875+14.75 -> 32.622 | J41: 17.4845 | L41: 17.4845 | P41: 17.4845
A42: HW08废油 | B42: 900-200-08 | C42: 液态 | D42: 30.943 | J42: 30.943 | K42: 15.183 | N42: 15.76 | P42: 30.943
A43: 废煤油 | B43: 900-201-08 | C43: 液态 | D43: 7.24 | E43: =1 -> 1 | J43: 8.24 | K43: 4.52 | L43: 1 | N43: 2.72 | P43: 8.24
A44: 油泥 | B44: 900-201-08 | C44: 半固态 | D44: 0 | J44: 0 | P44: 0
A45: 废锡膏盒 | B45: 900-205-08 | C45: 半固态 | D45: 0 | J45: 0 | P45: 0
A46: 废润滑油废浮渣 | B46: 900-209-08 | C46: 液态 | D46: 0 | E46: =0.795 -> 0.795 | F46: =0.795 -> 0.795 | J46: 0 | P46: 0
A47: 废润滑脂 | B47: 900-209-08 | C47: 半固态 | D47: 0 | E47: =0.041+5.318 -> 5.359 | F47: =0.041 -> 0.041 | J47: 5.318 | K47: 5.318 | P47: 5.318
A48: 水处理浮渣及污泥 | B48: 900-210-08 | C48: 半固态 | D48: 74.112 | E48: =13.12+3.416+3.3+3.416 -> 23.252 | F48: =4+7.56+10+13.04+20.7+5+17.932+6.716 -> 84.948 | J48: 12.416 | K48: =9 -> 9 | L48: 3.416 | P48: 12.416
A49: 废机油、含油废水 | B49: 900-210-08 | C49: 液态 | D49: 66.36 | E49: =6.8305 -> 6.8305 | F49: =7.22+1.0105 -> 8.2305 | J49: 64.96 | K49: 21.12 | L49: 38.94 | N49: 4.9 | P49: 64.96
A50: 废油泥 | B50: 900-210-08 | C50: 固态 | D50: 101.353 | E50: =5.1565+7.147+26.42 -> 38.7235 | F50: =10.332+13.37+5.931+5.1565 -> 34.7895 | J50: 105.287 | K50: 26.42 | L50: 78.867 | P50: 105.287
A51: 废水处理过程产废油、油泥、浮渣 | B51: 900-210-08 | C51: 液态 | D51: 0 | J51: 0 | P51: 0
A52: 废白土 | B52: 900-213-08 | C52: 固态 | D52: 28.048 | F52: =14.886+13.162 -> 28.048 | J52: 0 | P52: 0
A53: 废机油 | B53: 900-213-08 | C53: 液态 | D53: 0 | J53: 0 | P53: 0
A54: 废矿物油 | B54: 900-214-08 | C54: 液态 | D54: 62.9038 | E54: =2.356+0.22+26.02+0.04+0.14045+4.2435+0.0655 -> 33.08545 | G54: =1.3+1.74+5.87+0.495 -> 9.405 | J54: 86.58425 | K54: 24.2 | N54: 62.38425 | P54: 86.58425
A55: 废锂基脂 | B55: 900-214-08 | C55: 半固态 | D55: 0 | J55: 0 | P55: 0
A56: 废矿物油 | B56: 900-217-08 | C56: 液态 | D56: 90.75385 | E56: =1.02+0.2+0.01 -> 1.23 | G56: =0.28595+0.2+0.3 -> 0.78595 | J56: 91.1979 | N56: 91.1979 | P56: 91.1979
A57: 砂轮渣 | B57: 900-217-08 | C57: 固态 | D57: 0 | J57: 0 | P57: 0
A58: 废液压油 | B58: 900-218-08 | C58: 液态 | D58: 41.283 | E58: =0.085+0.05+0.3 -> 0.435 | G58: =0.58+4.66+0.42+0.175 -> 5.835 | J58: 35.883 | N58: 35.883 | P58: 35.883
A59: 废冷冻机油 | B59: 900-219-08 | C59: 液态 | D59: 14.28 | E59: =0.16 -> 0.16 | G59: =0.68 -> 0.68 | J59: 13.76 | N59: 13.76 | P59: 13.76
A60: 废矿物油与含矿物油废物 | B60: 900-220-08 | C60: 液态 | D60: 2.6 | E60: =0.8 -> 0.8 | J60: 3.4 | N60: 3.4 | P60: 3.4
A61: 清罐污泥 | B61: 900-220-08 | C61: 固态 | D61: 0 | J61: 0 | P61: 0
A62: 清罐油泥 | B62: 900-221-08 | C62: 固态 | D62: 0 | J62: 0 | P62: 0
A63: 废矿物油 | B63: 900-249-08 | C63: 液态 | D63: 155.80282 | E63: =57.62+5.451+0.09+1.455+1.292+0.01+8.84 -> 74.758 | G63: =0.17+0.12+2.27+3.12958+4.0321+1.3117 -> 11.03338 | J63: 219.52744 | K63: =3.64 -> 3.64 | L63: 97.36 | N63: 118.52744 | P63: 219.52744
A64: 废矿物油、废油桶 | B64: 900-249-08 | C64: 固态 | D64: 3.34 | E64: =6+0.512+0.24+0.32+4.1+0.04+12.4+0.091+5.52 -> 29.223 | F64: =1.1+0.6+1.64+0.28+5.72+0.02+0.015+0.06+0.06+0.165 -> 9.66 | H64: =4.1 -> 4.1 | J64: 18.803 | K64: 18.581 | L64: 0.222 | P64: 18.803
A65: 废矿物油、油泥 | B65: 900-249-08 | C65: 半固态 | D65: 0 | E65: =7.26 -> 7.26 | J65: 7.26 | K65: 7.26 | P65: 7.26
A66: 废水、乳化液 | B66: 900-007-09 | C66: 液态 | D66: 28.5685 | E66: =0.2+3.914+3.711+1.1265+2.6+1.016+3.182 -> 15.7495 | F66: =1.925 -> 1.925 | G66: =0.897+6.598 -> 7.495 | J66: 34.898 | L66: 34.898 | P66: 34.898
A67: 沉淀渣 | B67: 900-007-09 | C67: 半固态 | D67: 10.8 | E67: =6.4765 -> 6.4765 | J67: 17.2765 | L67: 17.2765 | P67: 17.2765
A68: 废乳化液 | B68: 900-005-09 | C68: 液态 | D68: 0 | J68: =D68+E68-F68-G68-H68-I68 -> 0 | P68: =K68+L68+M68+N68+O68 -> 0
A69: 废乳化液 | B69: 900-006-09 | C69: 液态 | D69: 114.163 | E69: =0.88+5.6495+1.41+0.7+4.5 -> 13.1395 | F69: =4 -> 4 | G69: =8.5+12.3+0.1 -> 20.9 | J69: 102.4025 | L69: 102.4025 | P69: 102.4025
A70: 砂轮沫 | B70: 900-006-09 | C70: 固态 | D70: 0 | E70: =2.55 -> 2.55 | F70: =2.55 -> 2.55 | J70: 0 | P70: 0
A71: 废焦油渣 | B71: 252-005-11 | C71: 固态 | D71: 0 | J71: 0 | P71: 0
A72: 废水汽提塔排重质烃 | B72: 252-009-11 | C72: 液态 | D72: 53.64 | E72: =14.58 -> 14.58 | J72: 68.22 | L72: 68.22 | P72: 68.22
A73: 煤焦油、釜残 | B73: 900-013-11 | C73: 固态 | D73: 19.9445 | E73: =9.9865 -> 9.9865 | F73: =5.6685+4.56+7.426+9.9865 -> 27.641 | J73: 2.29 | L73: 2.29 | P73: 2.29
A74: 煤焦油 | B74: 900-013-11 | C74: 液态 | D74: 44.004 | E74: =14.543+26.36 -> 40.903 | J74: 84.907 | K74: 47.964 | L74: 36.943 | P74: 84.907
A75: 釜残 | B75: 900-013-11 | C75: 半固态 | D75: 624.5645 | E75: =4.5815+22.417 -> 26.9985 | F75: =32.6845+4+3.9+3+22.39+15+6+3+6+6.06+6+6+3+3 -> 120.0345 | J75: 531.5285 | K75: 531.5285 | P75: 531.5285
A76: 煤焦油 | B76: 451-003-11 | C76: 半固态 | D76: 0 | J76: 0 | P76: 0
A77: 煤焦油 | B77: 451-003-11 | C77: 液态 | D77: 1120.92 | E77: =50.8+100.88+51.5+48.86+49.62 -> 301.66 | J77: 1422.58 | L77: 99.1 | N77: 1323.48 | P77: 1422.58
A78: 焦油渣 | B78: 451-003-11 | C78: 固态 | D78: 0 | J78: 0 | P78: 0
A79: 焦油渣 | B79: 451-001-11 | C79: 半固态 | D79: 0 | J79: 0 | P79: 0
A80: 漆渣 | B80: 900-250-12 | C80: 固态 | D80: 11.77 | E80: =13.466 -> 13.466 | F80: =11.77+13.466 -> 25.236 | J80: 0 | P80: 0
A81: 漆渣 | B81: 900-250-12 | C81: 半固态 | D81: 0 | E81: =0.53 -> 0.53 | F81: =0.53 -> 0.53 | J81: 0 | P81: 0
A82: 油漆渣 | B82: 900-251-12 | C82: 固态 | D82: 0 | J82: 0 | P82: 0
A83: 废水汽提塔排重质烃 | B83: 900-252-12 | C83: 液态 | D83: 0 | J83: 0 | P83: 0
A84: 废漆渣 | B84: 900-252-12 | C84: 固态 | D84: 173.0825 | E84: =18.03+22.0305+26.505+88.558+84.06+14.92+14.5105+8.9+15.72 -> 293.234 | F84: =2.58+6.08+7.6+20.0325+9.43+2.56+5+26.1555+16.16+15.01+14.225+9.61+26.95+23.925+4.2255 -> 189.5435 | J84: 276.773 | K84: =276.773-180 -> 96.773 | O84: 180 | P84: 276.773
A85: 漆渣 | B85: 900-252-12 | C85: 半固态 | D85: 0 | J85: 0 | P85: 0
A86: 废油墨 | B86: 900-253-12 | C86: 液态 | D86: 3 | F86: =3 -> 3 | J86: 0 | P86: 0
A87: 废油印纸/油墨盒 | B87: 900-253-12 | C87: 固态 | D87: 0 | J87: 0 | P87: 0
A88: 原材料废包装袋 | B88: 900-255-12 | C88: 固态 | D88: 0 | J88: 0 | P88: 0
A89: 废油漆 | B89: 900-256-12 | C89: 液态 | D89: 0 | J89: 0 | P89: 0
A90: 废油漆 | B90: 900-256-12 | C90: 半固态 | D90: 0 | J90: 0 | P90: 0
A91: 油墨渣子、油漆 | B91: 900-299-12 | C91: 半固态 | D91: 0 | E91: =1.674 -> 1.674 | J91: 1.674 | K91: 1.674 | P91: 1.674
A92: 硒鼓墨盒 | B92: 900-299-12 | C92: 固态 | D92: 0.05 | E92: =0.002+0.004+0.04 -> 0.046 | F92: =0.05+0.006+0.04 -> 0.096 | J92: 0 | P92: 0
A93: 油漆渣 | B93: 900-299-12 | C93: 液态 | D93: 0 | E93: =0.32 -> 0.32 | F93: =0.32 -> 0.32 | J93: 0 | P93: 0
A94: 废油墨 | B94: 264-011-12 | C94: 液态 | D94: 0 | J94: 0 | P94: 0
A95: 油墨渣 | B95: 264-011-12 | C95: 固态 | D95: 0 | E95: =0.2 -> 0.2 | F95: =0.2 -> 0.2 | J95: 0 | P95: 0
A96: 污泥 | B96: 264-012-12 | C96: 固态 | D96: 0 | J96: 0 | P96: 0
A97: 废水处理污泥 | B97: 264-012-12 | C97: 半固态 | D97: 0.2 | F97: =0.2 -> 0.2 | J97: 0 | P97: 0
A98: 废漆渣稀释剂混合物 | B98: 264-013-12 | C98: 液态 | D98: 0 | J98: 0 | P98: 0
A99: 发泡废料，废胶水 | B99: 900-014-13 | C99: 半固态 | D99: 0.184 | E99: =0.5 -> 0.5 | F99: =0.184 -> 0.184 | J99: 0.5 | K99: 0.5 | P99: 0.5
A100: 废胶水 | B100: 900-014-13 | C100: 液态 | D100: 0 | J100: 0 | P100: 0
A101: 发泡废料，废胶水 | B101: 900-014-13 | C101: 固态 | D101: 28.51 | E101: =0.56+6.93+20.18+1.54 -> 29.21 | F101: =9.96+8.85+0.56 -> 19.37 | J101: 38.35 | K101: =38.35-15 -> 23.35 | O101: 15 | P101: 38.35
A102: 废树脂 | B102: 900-015-13 | C102: 固态 | D102: 4.53 | E102: =0.04 -> 0.04 | F102: =0.1+4.43+0.04 -> 4.57 | J102: 0 | P102: 0
A103: 废树脂 | B103: 900-015-13 | C103: 半固态 | D103: 0 | J103: 0 | P103: 0
A104: 废水 | B104: 900-016-13 | C104: 液态 | D104: 0 | J104: 0 | P104: 0
A105: 有机树脂废物 | B105: 900-016-13 | C105: 半固态 | D105: 4.296 | J105: 4.296 | K105: 4.296 | P105: 4.296
A106: PBL真空废液 | B106: 265-101-13 | C106: 液态 | D106: 17.52 | J106: 17.52 | K106: 17.52 | P106: 17.52
A107: 不合格有机树脂 | B107: 265-101-13 | C107: 半固态 | D107: 0 | J107: 0 | P107: 0
A108: PBL真空废液 | B108: 265-101-13 | C108: 固态 | D108: 0 | J108: 0 | P108: 0
A109: 含盐废水 | B109: 265-103-13 | C109: 液态 | D109: 0 | J109: 0 | P109: 0
A110: 釜残与滤渣 | B110: 265-103-13 | C110: 半固态 | D110: 0 | J110: 0 | P110: 0
A111: 废树脂 | B111: 265-103-13 | C111: 固态 | D111: 0 | E111: =2.74 -> 2.74 | J111: 2.74 | K111: 2.74 | P111: 2.74
A112: 污泥 | B112: 265-104-13 | C112: 半固态 | D112: 0 | J112: 0 | P112: 0
A113: 污水处理站污泥 | B113: 265-104-13 | C113: 固态 | D113: 0 | E113: =2.444 -> 2.444 | F113: =2.444 -> 2.444 | J113: 0 | P113: 0
A114: 感光废物 | B114: 231-001-16 | C114: 液态 | D114: 0 | E114: =0.6 -> 0.6 | J114: 0.6 | K114: 0.6 | P114: 0.6
A115: 废定影液 | B115: 266-009-16 | C115: 液态 | D115: 0 | J115: 0 | P115: 0
A116: 废胶片 | B116: 266-009-16 | C116: 固态 | D116: 0 | J116: 0 | P116: 0
A117: 废显影液 | B117: 900-019-16 | C117: 液态 | D117: 0 | E117: =1.2 -> 1.2 | J117: 1.2 | K117: 1.2 | P117: 1.2
A118: 废显影液 | B118: 398-001-16 | C118: 液态 | D118: 0 | J118: 0 | P118: 0
A119: 助镀再生废渣 | B119: 336-051-17 | C119: 固态 | D119: 0 | J119: 0 | P119: 0
A120: 含铬污泥 | B120: 336-060-17 | C120: 固态 | D120: 0 | E120: =0.25 -> 0.25 | J120: 0.25 | L120: 0.25 | P120: 0.25
A121: 镀铜溶液 | B121: 336-062-17 | C121: 液态 | D121: 0 | J121: 0 | P121: 0
A122: 含铜污泥 | B122: 336-062-17 | C122: 固态 | D122: 0 | E122: =8.32 -> 8.32 | J122: 8.32 | L122: 8.32 | P122: 8.32
A123: 电镀污泥 | B123: 336-052-17 | C123: 固态 | D123: 0 | E123: =28.48+29.46+0.1 -> 58.04 | F123: =15+13.48+20+9.46 -> 57.94 | J123: 0.1 | L123: 0.1 | P123: 0.1
A124: 污泥 | B124: 336-053-17 | C124: 固态 | D124: 0 | J124: 0 | P124: 0
A125: 镀镍废液 | B125: 336-055-17 | C125: 液态 | D125: 0 | E125: =6.1932 -> 6.1932 | J125: 6.1932 | L125: 6.1932 | P125: 6.1932
A126: 镀铁电解液 | B126: 336-063-17 | C126: 液态 | D126: 0 | J126: 0 | P126: 0
A127: 电镀污泥 | B127: 336-063-17 | C127: 半固态 | D127: 0 | J127: 0 | P127: 0
A128: 电镀污泥 | B128: 336-063-17 | C128: 固态 | D128: 0 | J128: 0 | P128: 0
A129: 磷化污泥 | B129: 336-064-17 | C129: 固态 | D129: 26.259 | E129: =5.415+3.877+0.2 -> 9.492 | F129: =9.56+10.14+6.559 -> 26.259 | J129: 9.492 | L129: 9.492 | P129: 9.492
A130: 金属表面处理污泥 | B130: 336-064-17 | C130: 半固态 | D130: 0 | J130: 0 | P130: 0
A131: 金属表面处理污泥 | B131: 336-064-17 | C131: 液态 | D131: 22.08 | E131: =26.95+1.379+1 -> 29.329 | F131: =10+9.6 -> 19.6 | J131: 31.809 | L131: 31.809 | P131: 31.809
A132: 废锡渣 | B132: 336-059-17 | C132: 固态 | D132: 0 | J132: =D132+E132-F132-G132-H132-I132 -> 0 | P132: =K132+L132+M132+N132+O132 -> 0
A133: 污泥 | B133: 336-069-17 | C133: 半固态 | D133: 0 | J133: 0 | P133: 0
A134: 污泥 | B134: 336-069-17 | C134: 液态 | D134: 0.835 | F134: =0.835 -> 0.835 | J134: 0 | P134: 0
A135: 污泥 | B135: 336-069-17 | C135: 固态 | D135: 20.545 | F135: =20.545 -> 20.545 | J135: 0 | P135: 0
A136: 活性炭 | B136: 772-005-18 | C136: 固态 | D136: 0.1 | F136: =0.1 -> 0.1 | J136: 0 | P136: 0
A137: 废UV灯管 | B137: 900-023-29 | C137: 固态 | D137: 0 | J137: 0 | P137: 0
A138: 废碱液 | B138: 251-015-35 | C138: 液态 | D138: 0 | J138: 0 | P138: 0
A139: 废碱泥 | B139: 251-015-35 | C139: 半固态 | D139: 0 | J139: 0 | P139: 0
A140: 片碱袋 | B140: 900-399-35 | C140: 固态 | D140: 0 | J140: 0 | P140: 0
A141: 清洁剂 | B141: 900-399-35 | C141: 液态 | D141: 0 | J141: 0 | P141: 0
A142: 废硫氢化钠残渣 | B142: 900-399-35 | C142: 半固态 | D142: 0 | J142: 0 | P142: 0
A143: 废碱液 | B143: 900-352-35 | C143: 液态 | D143: 0 | J143: 0 | P143: 0
A144: 废碱液 | B144: 900-354-35 | C144: 液态 | D144: 0 | J144: 0 | P144: 0
A145: 废抗燃油 | B145: 900-033-37 | C145: 液态 | D145: 0 | J145: 0 | P145: 0
A146: 含酚废水 | B146: 261-070-39 | C146: 液态 | D146: 201.12 | E146: =32.64 -> 32.64 | G146: =25.5+4.08 -> 29.58 | J146: 204.18 | N146: 204.18 | P146: 204.18
A147: 废活性炭 | B147: 261-071-39 | C147: 固态 | D147: 0 | E147: =0.191 -> 0.191 | J147: 0.191 | L147: 0.191 | P147: 0.191
A148: 污泥 | B148: 261-084-45 | C148: 半固态 | D148: 0.68 | F148: =0.68 -> 0.68 | J148: 0 | P148: 0
A149: 污泥 | B149: 261-084-45 | C149: 固态 | D149: 28.19 | F149: =10+16.22+1.97 -> 28.19 | J149: 0 | P149: 0
A150: 含油废物 | B150: 900-041-49 | C150: 固态 | D150: 132.8255 | E150: =36.73+13.693+47.97+16.207+117.5159+25.068+12.932+16.8005+17.65318+22.90385+34.4845 -> 361.95793 | F150: =27.992+31.666+15.185+7.581+11.646+9.042+31.7815+9.279+26.8825+19.882+40.473+10.743+26.638+20.8834+17.013+19.3275 -> 326.0149 | H150: =10.323+6.722 -> 17.045 | J150: 151.72353 | K150: =103.3858-70 -> 33.3858 | L150: =48.33773-30 -> 18.33773 | O150: =70+30 -> 100 | P150: 151.72353
A151: 含有或沾染危险废物的废弃物 | B151: 900-041-49 | C151: 半固态 | D151: 0 | J151: 0 | P151: 0
A152: 电捕焦油 | B152: 900-041-49 | C152: 液态 | D152: 0 | J152: 0 | P152: 0
A153: 废酸碱袋 | B153: 900-042-49 | C153: 固态 | D153: 0 | E153: =0.326+0.267+0.324+0.262 -> 1.179 | F153: =0.326+0.267+0.324 -> 0.917 | J153: 0.262 | K153: 0.262 | P153: 0.262
A154: 污泥 | B154: 772-006-49 | C154: 固态 | D154: 9.4 | F154: =5+4.4 -> 9.4 | J154: 0 | P154: 0
A155: 污泥 | B155: 772-006-49 | C155: 半固态 | D155: 2.595 | F155: =0.595+2 -> 2.595 | J155: 0 | P155: 0
A156: 废活性炭 | B156: 900-039-49 | C156: 固态 | D156: 22.6195 | E156: =4.4625+0.244+0.365+0.1+0.59+0.03+1.14+0.86 -> 7.7915 | F156: =2.6835+3.62+4.216+8+4.1+0.02+4.5525+0.03+0.104+0.08 -> 27.406 | J156: 3.005 | K156: =0.16 -> 0.16 | L156: 2.845 | P156: 3.005
A157: 废水污泥 | B157: 900-046-49 | C157: 固态 | D157: 0 | J157: 0 | P157: 0
A158: 污泥 | B158: 900-046-49 | C158: 半固态 | D158: 0 | J158: 0 | P158: 0
A159: 过期化学药品 | B159: 900-047-49 | C159: 固态 | D159: 0.56 | E159: =0.2334+0.10063+0.251+0.1228+0.1161+5.82945+0.05 -> 6.70338 | F159: =0.56+0.2534+0.08063+0.051+0.3228+0.041 -> 1.30883 | J159: 5.95455 | K159: 0.3295 | L159: 5.62505 | P159: 5.95455
A160: 乙腈、异丙酮、废液 | B160: 900-047-49 | C160: 液态 | D160: 45.8411 | E160: =3.881+5.61248+3.013+2.1799+4.27685+0.112+2.612+12.52005+7.43713+3.60735 -> 45.25176 | F160: =0.505+0.993+1.613+4.7815+2.06+5.319 -> 15.2715 | G160: =0.454+3.6417+8.21+0.08+2.896+0.83948 -> 16.12118 | J160: 59.70018 | L160: 59.70018 | P160: 59.70018
A161: 危险化学品 | B161: 900-999-49 | C161: 固态 | D161: 0.72 | E161: =0.0044+0.14631 -> 0.15071 | J161: 0.87071 | K161: 0.72 | L161: 0.15071 | P161: 0.87071
A162: 过期面膜原料、残液 | B162: 900-999-49 | C162: 液态 | D162: 17.251 | F162: =0.771+4 -> 4.771 | G162: =12.48 -> 12.48 | J162: 0 | P162: 0
A163: 废催化剂 | B163: 261-151-50 | C163: 固态 | D163: 0.1 | F163: =0.1 -> 0.1 | J163: 0 | P163: 0
A164: 废催化剂 | B164: 261-152-50 | C164: 固态 | D164: 0 | J164: 0 | P164: 0
A165: 小计： | D165: 4603.67432 | E165: =SUM(E4:E164) -> 1829.34188 | F165: 1378.25398 | G165: 312.07451 | H165: 21.145 | I165: 0 | J165: 4721.54271 | K165: =SUM(K4:K164) -> 1028.6949 | L165: 1269.08522 | M165: 0 | N165: 2058.76259 | O165: 365 | P165: 4721.54271
A166: 合计： | F166: =F165+G165+H165 -> 1711.47349
